Cogmind - Beta 12 @@@ ROGUE MODE // 2023.10.07 @ 13:56:55 Player: Finestep Result: Destroyed by G-34 Mercenary with Small Laser Performance ------------- Evolutions (0) 0 Regions Visited (2) 400 Robots Destroyed (35) 175 Value Destroyed (897) 897 Prototype IDs (0) 0 Alien Tech Used (0) 0 Bonus (0) 0 TOTAL SCORE: 1472 Bonus ------- None Cogmind --------- Core Integrity 0/250 Matter 244/300 Energy 100/100 System Corruption 0% Temperature Cool (6) Movement Treading (240) Ox1 Location -10/Mines Parts ------- > --- POWER (1) -------- (None) > --- PROPULSION (2) --- Light Treads > --- UTILITY (2) ------ Large Storage Unit Improved Targeting Computer > --- WEAPON (2) ------- Assault Rifle Assault Rifle > --- INVENTORY (15) --- Aluminum Leg Aluminum Leg Aluminum Leg Aluminum Leg Aluminum Leg High-capacity Battery (250) High-capacity Matter Pod (200) Improved Targeting Computer Propulsion Shielding Light EM Pulse Cannon Particle Cannon Particle Cannon Particle Cannon Grenade Launcher Mining Laser Peak State ------------ > --- POWER ------------ Ion Engine > --- PROPULSION ------- Light Treads Light Treads > --- UTILITY ---------- Large Storage Unit Improved Targeting Computer > --- WEAPON ----------- Assault Rifle Assault Rifle > --- INVENTORY -------- Aluminum Leg Aluminum Leg Aluminum Leg Aluminum Leg Aluminum Leg High-capacity Matter Pod Improved Targeting Computer Propulsion Shielding Light EM Pulse Cannon Particle Cannon Particle Cannon Particle Cannon Grenade Launcher Datajack Mining Laser [Rating: 10] Favorites ----------- Power Light Ion Engine Engine Light Ion Engine Propulsion Light Treads Treads Light Treads Leg Aluminum Leg Utility Large Storage Unit Device Heat Sink Storage Large Storage Unit Processor Targeting Computer Weapon Assault Rifle Energy Gun EM Pulse Gun Ballistic Gun Assault Rifle Ballistic Cannon Light Cannon Launcher Grenade Launcher Build | -11 -10 -10 ------- Run | Jun Mat Min Slots Evolved . | . . . Power . | . . . Propulsion . | . . . Utility . | . . . Weapon . | . . . Parts Attached 24 | 7 17 . Power 3 | 1 2 . Engine 3 | 1 2 . Core . | . . . Reactor . | . . . Propulsion 5 | 2 3 . Treads 3 | . 3 . Leg 2 | 2 . . Wheel . | . . . Hover . | . . . Flight . | . . . Utility 5 | 1 4 . Device 1 | . 1 . Storage 2 | 1 1 . Processor 2 | . 2 . Hackware . | . . . Protection . | . . . Artifact . | . . . Weapon 11 | 3 8 . Energy Gun 2 | 2 . . Energy Cannon . | . . . Ballistic Gun 7 | 1 6 . Ballistic Cannon 1 | . 1 . Launcher 1 | . 1 . Special Weapon . | . . . Impact Weapon . | . . . Slashing Weapon . | . . . Piercing Weapon . | . . . Special Melee Weapon . | . . . Unidentified Prototypes . | . . . Parts Lost 6 | . 4 2 Power 3 | . 2 1 Propulsion 1 | . . 1 Utility . | . . . Weapon 2 | . 2 . Highest Loss Streak 2 | . 1 2 To Critical Strikes . | . . . Average Slot Usage (%) 97 | . 97 98 Engine 13 | . 13 12 Treads 27 | . 27 27 Device 1 | . 1 . Storage 14 | . 14 14 Processor 10 | . 10 14 Energy Gun 2 | . 3 . Ballistic Gun 20 | . 19 28 Ballistic Cannon 3 | . 4 . Naked Turns . | . . . Heaviest Build 29 | 12 29 29 Greatest Support 40 | 20 40 40 Greatest Overweight (x) 3 | 3 . . Average Overweight (x) . | . . . Largest Inventory Capacity 15 | 8 15 15 Average Capacity 14 | 7 14 15 Most Carried 15 | 8 15 15 Average Carried 13 | 5 13 15 Final Capacity 15 | 8 15 15 Final Carried 15 | 8 15 15 Class Distribution -------------------- 100% | Mutant Dominant Class ---------------- Mutant | -10/Materials Mutant | -10/Mines Resources | -11 -10 -10 ----------- Run | Jun Mat Min Matter Collected 1061 | 271 742 48 Remotely . | . . . Salvage Created 1323 | 140 1066 117 Parts 69 | 9 57 3 Haulers Intercepted 2 | . 2 . Recyclers Shooed 3 | . 3 . Parts Field Recycled . | . . . Retrieved Matter . | . . . Parts Self-Destructed . | . . . Prevented . | . . . Kills | -11 -10 -10 ------- Run | Jun Mat Min Combat Hostiles Destroyed 23 | . 21 2 Guns 15 | . 13 2 Cannons 4 | . 4 . AOE 4 | . 4 . Classes Destroyed 8 | 2 6 . Builder 1 | . 1 . Tunneler 2 | 2 . . Hauler 2 | . 2 . Recycler 2 | 1 1 . Operator 2 | . 2 . Watcher 3 | . 3 . Swarmer 3 | . 3 . Grunt 20 | . 18 2 Best Kill Streak 3 | 2 3 1 Combat Bots Only 3 | . 3 1 Max Kills in Single Turn 2 | 1 2 1 Gunslinging . | . . . Exploded 2 | . 2 . Melee . | . . . Uniques/NPCs Destroyed . | . . . Combat | -11 -10 -10 -------- Run | Jun Mat Min Damage Taken 1146 | . 890 256 Core 251 | . 209 42 Absorbed by Shields . | . . . Regen/Repaired (Parts) 1 | . 1 . Core Remaining (%) 100 | 100 . . Volleys Fired 111 | 5 89 17 Largest 2 | 2 2 2 Hottest 80 | 80 80 40 Shots Fired 218 | 10 174 34 Gun 194 | 10 150 34 Cannon 22 | . 22 . Launcher 2 | . 2 . Special . | . . . Kinetic 166 | 1 131 34 Thermal . | . . . Explosive 2 | . 2 . Electromagnetic 50 | 9 41 . Robot Hit Streak 12 | 5 12 12 Robot Miss Streak 3 | 1 3 2 Penetration Max . | . . . Secondary Targets 2 | . 2 . Max Gunslinging Chain 1 | . 1 . Shots Hit Robots 149 | 7 117 25 Core Hits 62 | 4 51 7 Critical Kills 1 | . 1 . Critical Parts Destroyed . | . . . Critical Strikes 3 | . 3 . Destroy 1 | . 1 . Blast 2 | . 2 . Melee Attacks . | . . . Impact . | . . . Slashing . | . . . Piercing . | . . . Sneak Attacks . | . . . Combat Hostiles . | . . . Follow-up Attacks . | . . . Damage Inflicted 2167 | 89 1771 307 Guns 1665 | 89 1269 307 Cannons 258 | . 258 . Explosions 244 | . 244 . Melee . | . . . Ramming . | . . . Kinetic 1483 | 6 1170 307 Thermal 138 | . 138 . Explosive 106 | . 106 . Electromagnetic 440 | 83 357 . Impact . | . . . Slashing . | . . . Piercing . | . . . Highest Corruption . | . . . Average Corruption . | . . . Corruption Purged . | . . . Corruption Blocked . | . . . Overload Shots . | . . . Overflow Damage 9 | . 9 . Projectiles . | . . . Explosions 9 | . 9 . Melee . | . . . Knockbacks . | . . . Impact . | . . . Kinetic . | . . . Secondary . | . . . Self-Inflicted Damage 54 | . 54 . Shots 1 | . 1 . Rammed . | . . . Targets Rammed . | . . . Kicked . | . . . Crushed . | . . . Highest Temperature 274 | 54 274 20 Average Temperature 74 | 24 90 5 Received Heat Transfer 591 | . 429 162 Siege Activations . | . . . Robots Corrupted . | . . . Combat Hostiles . | . . . Parts Fried 2 | . 2 . Impact Corruptions . | . . . Robots Melted . | . . . Combat Hostiles . | . . . Parts Melted . | . . . Heat Transferred 150 | . 150 . Parts Sabotaged . | . . . Parts Stolen . | . . . Parts Stripped . | . . . Power Chain Reactions 3 | . 3 . Missiles Intercepted . | . . . Alert | -11 -10 -10 ------- Run | Jun Mat Min Peak Influence 226 | 15 226 132 Initial 57 | . 9 57 Average 80 | 4 83 82 Maximum Alert Level 1 | . 1 . Low Security (%) 95 | 100 94 100 Level 1 4 | . 5 . Level 2 . | . . . Level 3 . | . . . Level 4 . | . . . Level 5 . | . . . High Security . | . . . Max Security . | . . . Squads Dispatched 7 | . 7 . Investigation 5 | . 5 . Extermination . | . . . Reinforcement 2 | . 2 . Assault . | . . . Garrison . | . . . Intercept . | . . . Searches Triggered . | . . . Construction Impeded . | . . . Haulers Reinforced . | . . . Active Scanning Responses . | . . . Cargo Convoy Interrupts . | . . . Stealth | -11 -10 -10 --------- Run | Jun Mat Min Distress Signals . | . . . Communications Jammed . | . . . Distress Signals . | . . . Times Spotted 33 | . 29 4 Peak Tracking Total 4 | . 4 2 Tactical Retreats 3 | . 2 1 Traps | -11 -10 -10 ------- Run | Jun Mat Min Traps Triggered 2 | . 2 . Indirectly . | . . . Trap Hack Attempts . | . . . Triggered . | . . . Disarmed . | . . . Reprogrammed . | . . . Reused . | . . . Traps Extracted . | . . . Installed . | . . . Triggered . | . . . Machines | -11 -10 -10 ---------- Run | Jun Mat Min Machines Disabled 2 | . 2 . Max in Single Turn 1 | . 1 . Machines Repaired . | . . . Machines Sabotaged . | . . . Overloaded Fab Kills . | . . . Hacking | -11 -10 -10 --------- Run | Jun Mat Min Machines Accessed 9 | . 9 . Terminals 6 | . 6 . Fabricators . | . . . Repair Stations 1 | . 1 . Recycling Units 2 | . 2 . Scanalyzers . | . . . Garrison Access . | . . . Total Hacks 24 | . 24 . Successful 10 | . 10 . Failed 13 | . 13 . Catastrophic 5 | . 5 . Database Lockouts 1 | . 1 . Manual 13 | . 13 . Terminals 16 | . 16 . Fabricators . | . . . Repair Stations 2 | . 2 . Recycling Units 6 | . 6 . Scanalyzers . | . . . Garrison Access . | . . . Terminal Hacks 4 | . 4 . Part Schematic 1 | . 1 . Unreport Threat 1 | . 1 . Zone Layout 2 | . 2 . Fabricator Hacks . | . . . Repair Station Hacks 2 | . 2 . Scan Component 1 | . 1 . Repair 1 | . 1 . Recycling Unit Hacks . | . . . Scanalyzer . | . . . Garrison Access Hacks . | . . . Unauthorized Hacks 4 | . 4 . Terminals 2 | . 2 . Botnet 1 | . 1 . Operators 1 | . 1 . Fabricators . | . . . Repair Stations . | . . . Recycling Units 2 | . 2 . Tunnel 2 | . 2 . Scanalyzers . | . . . Garrison Access . | . . . Data Cores Recovered . | . . . Used . | . . . Hacking Detections 8 | . 8 . Full Trace Events 1 | . 1 . Feedback Events . | . . . Feedback Blocked . | . . . Robot Schematics Acquired . | . . . Robots Built . | . . . Authchips . | . . . Time . | . . . Total Robot Build Rating . | . . . Part Schematics Acquired 1 | . 1 . Parts Built . | . . . Authchips . | . . . Time . | . . . Total Part Build Rating . | . . . Parts Repaired 1 | . 1 . Time 18 | . 18 . Parts Recycled . | . . . Recycled Matter . | . . . Retrieved Matter . | . . . Retrieved Components . | . . . Parts Scanalyzed . | . . . Part Schematics Acquired . | . . . Parts Damaged . | . . . Bothacking | -11 -10 -10 ------------ Run | Jun Mat Min Used RIF Installer . | . . . Robots Hacked . | . . . Non-combat . | . . . Combat . | . . . Robot Hacks Applied . | . . . Relay Couplers Released . | . . . Fabnet Peak Effective % . | . . . Robots Rewired . | . . . Allies Hacked . | . . . Hacks Repelled . | . . . Allies | -11 -10 -10 -------- Run | Jun Mat Min Total Allies . | . . . Largest Group . | . . . Highest-Rated Group . | . . . Highest-Rated Ally . | . . . Total Orders . | . . . Ally Attacks . | . . . Total Damage . | . . . Kills . | . . . Allies Corrupted . | . . . Allies Melted . | . . . Intel | -11 -10 -10 ------- Run | Jun Mat Min Robot Analysis Total . | . . . Derelict Logs Recovered . | . . . Drone Launches . | . . . Drone Recoveries . | . . . Exploration | -11 -10 -10 ------------- Run | Jun Mat Min Turns Passed 2061 | 91 1714 256 Spaces Moved 1024 | 45 854 125 Core 20 | 20 . . Treads 954 | . 829 125 Legs 50 | 25 25 . Wheels . | . . . Hover . | . . . Flight . | . . . Fastest Speed 50 | 50 120 160 Average Speed 157 | 130 158 160 Slowest Speed 200 | 200 160 160 Overloaded Moves . | . . . Propulsion Burnouts . | . . . Robots Hopped . | . . . Cave-ins Triggered . | . . . Exploration Rate (%) 42 | 4 95 28 Regions Visited 2 Branch Regions 1 Pre-discovered Areas 2 | . 2 . Known Exits Taken . | . . . Unknown Exits Taken 2 | 1 1 . Scrap Searched 2 | . . 2 Spaces Dug 5 | . 5 . Terrain Destroyed 26 | . 26 . Melee . | . . . Projectile . | . . . AOE 26 | . 26 . Terrain Rammed . | . . . Walls Destroyed . | . . . Machines Disabled . | . . . Actions | -11 -10 -10 --------- Run | Jun Mat Min Total 1258 | 64 1046 148 Wait 52 | . 46 6 Move 1022 | 44 853 125 Hop . | . . . Pick Up 33 | 8 25 . Fast Attach 8 | 6 2 . Attach 5 | . 5 . Detach . | . . . Swap 11 | 1 10 . Drop 16 | . 16 . Fire 111 | 5 89 17 Melee . | . . . Ram . | . . . Kick . | . . . Crush . | . . . Escape Stasis . | . . . Rewire . | . . . Trap . | . . . Miscellaneous . | . . . Route ------- -11/Junkyard -10/Materials (discovered 5 exits: [*Mat x3] / [*Min x2]) -10/Mines History --------- Turn | Location | Event 29 | -11/Junkyard | Discovered new exit (range 13) 92 | -11/Junkyard | Entered Materials 287 | -10/Materials | Discovered new exit (range 11) 311 | -10/Materials | Build established: Mutant 391 | -10/Materials | Core integrity fell below 50% 611 | -10/Materials | Discovered new exit (range 15) 898 | -10/Materials | Discovered new exit (range 9) 905 | -10/Materials | Central database locked down 1139 | -10/Materials | Discovered new exit (range 12) 1492 | -10/Materials | Discovered new exit (range 14) 1683 | -10/Materials | Core integrity fell below 20% 1713 | -10/Materials | Repaired Corrupted Mining Laser 1806 | -10/Materials | Entered Mines 1859 | -10/Mines | Met a Derelict bent on vengeance 2062 | -10/Mines | Destroyed by G-34 Mercenary with Small Laser Last Messages --------------- 01876_ T-07 Excavator is excavating. 01922_ G-47 Trooper destroyed. 01927_ Acquired 48 matter. 01945_ T-07 Excavator is excavating. 01991_ Searching scrap... 01991_ Found Sml. Matter Pod. 01991_ Found Med. Laser. 01991_ Found Heat Sink. 01991_ Found 33 Matter. 01996_ Searching scrap... 01996_ Found Structural Scanner. 01996_ Found Med. Laser. 01996_ Found Structural Scanner. 01996_ Found Lgt. Ion Engine. 01996_ Found 24 Matter. 02035_ Critical hit (Burn: +37). 02039_ G-47 Trooper destroyed. 02048_ Ion Engine destroyed. 02050_ Lgt. Treads destroyed. 02057_ Destroyed Ion Engine. Map ----- +----------------------------------------------------+ | ####### ### #?# ##??????????? | | #?# #??????????? | | ## """ ### #????###???? | | ##### ### #### """ #????# ##??? | | #???# #####?# ###??## """ #????# #??? | | #??# ##?????# #?????# ## ####??## #??? | | #?# ##??????# #?????## ## #?????# #??? | | #?# ##??????? #??????# ### #????## #??? | | ## #????????###??????# ##?# #???## ##??? | | ## ?????????????????# #??# ##### ###???? | | #### ?????????????????# #??# [%! ##?????? | | ???# ?????????????????# #??###### #??????? | | ???## #?????????????????# #??????## ##?????? | | ????# ??????????????????# #?????## #?????? | | ????# ??????????????????# #????## ##????? | | ???? ??????????????????# [###### #????? | | ????? ??????????????????#%* %[ #????? | | ?????????????????????????#!!! ! ##????? | | ?????????????????????????##### #### #######?????? | | ?????????????????????????????# #??####???????????? | | ????????????????????????###### #?????????????????? | | ????????????????????????# #?????????????????? | | ????????????????????????# ######?????????????????? | | ????????????????????????# #??????????????????????? | | ????????????????????????# #??????????????????????? | | ????????????????????????#@##### #???????????? | | ????????????????????????# g= #???????????? | | ????????????????????????####### """ #???????????? | | ?????????????????????????????????????????????????? | | ?????????????????????????????????????????????????? | | ?????????????????????????????????????????????????? | | ?????????????????????????????????????????????????? | | ?????????????????????????????????????????????????? | | ?????????????????????????????????????????????????? | | ?????????????????????????????????????????????????? | | ?????????????????????????????????????????????????? | | ?????????????????????????????????????????????????? | | ?????????????????????????????????????????????????? | | ?????????????????????????????????????????????????? | | ?????????????????????????????????????????????????? | | ?????????????????????????????????????????????????? | | ?????????????????????????????????????????????????? | | ?????????????????????????????????????????????????? | | ?????????????????????????????????????????????????? | | ?????????????????????????????????????????????????? | | ?????????????????????????????????????????????????? | | ?????????????????????????????????????????????????? | | ?????????????????????????????????????????????????? | | ?????????????????????????????????????????????????? | | ?????????????????????????????????????????????????? | +----------------------------------------------------+ Best States ------------- Heat Dissipation 35 Energy Generation 10 Energy Capacity 250 Matter Stores 300 Matter Capacity 300 Sight Range 16 Terrain Scan Density 10 Evasion (%) 55 Targeting Accuracy 6 Recoil Reduction 2 Item Schematics ----------------- Med. Storage Unit | -10/Materials | Hacked Robot Schematics ------------------ None Fabricated ------------ Nothing Alien Tech Used ----------------- None Achievements -------------- None Challenges ------------ None Game ------ Seed CommShrapnelLance Manual? 0 Play Time 00:12:14 Cumulative 657.2 hours Start 2023.10.07 @ 13:27:03 End 2023.10.07 @ 13:56:55 Sessions 1 Manual Loads 0 Difficulty Rogue Special Mode None Game No. 408 Rogue 408 Adventurer 0 Explorer 0 Win Type - Total 9 Types 6/0/1/1/1/0/0/0/0 Lore% 87 Gallery% 90 Achievement% 74 Wizard Run 0 Options --------- ASCII 0 Keyboard 0 Movement Mouse Keybinds 1 Fullscreen 2 Font 24/Smallcaps Map View 68x50 Tactical HUD 1 Map Filters NONE Filters NONE Steam 1 RUN: 24734b0c-c6e8-4946-a857-589c1c7b53e0